Cogmind - Beta 10.2 @@@ ROGUE MODE // 2021.11.05 @ 07:28:52 Player: dark Result: Destroyed by S-27 Virus with Autogun Performance ------------- Evolutions (3) 1500 Regions Visited (10) 2000 Robots Destroyed (19) 95 Value Destroyed (500) 500 Prototype IDs (16) 320 Alien Tech Used (0) 0 Bonus (731) 731 TOTAL SCORE: 5146 Bonus ------- Follower Combat Kills 131 Aligned with FarCom 300 Met Data Miner 300 Cogmind --------- Core Integrity 0/700 Matter 280/300 Energy 97/100 System Corruption 4% Temperature Cool (0) Movement Core (100) Ox1 Location -6/Proximity Caves Parts ------- > --- POWER (2) -------- (None) > --- PROPULSION (4) --- (None) > --- UTILITY (5) ------ Enhanced Optical Array Advanced Signal Interpreter > --- WEAPON (2) ------- Great Maul > --- INVENTORY (4) ---- Long-range Terrain Scanner Peak State ------------ > --- POWER ------------ Light Deuterium Engine > --- PROPULSION ------- VTOL Module Cesium-ion Thruster Cesium-ion Thruster Xenon Bombardment Thruster > --- UTILITY ---------- Small Storage Unit Enhanced Optical Array Advanced Signal Interpreter Maneuvering Thrusters Cloak of Protection > --- WEAPON ----------- AWS/Gauss > --- INVENTORY -------- VTOL Module Long-range Terrain Scanner Hardlight Generator Great Maul [Rating: 51] Favorites ----------- Power Ion Engine Engine Ion Engine Power Core Light Nuclear Core Propulsion VTOL Module Treads Light Treads Leg Aluminum Leg Flight Unit VTOL Module Utility Small Storage Unit Device Cloak of Protection Storage Small Storage Unit Processor Enhanced Optical Array Weapon Assault Rifle Energy Gun EM Pulse Gun Ballistic Gun Assault Rifle Launcher Grenade Launcher Impact Weapon Great Maul Build | -11 -10 -10 -10 -9 -8 -7 -7 -7 -7 -6 ------- Run | Scr Mat Min Exi Min Mat Fac Low Low Dat Pro Slots Evolved 6 | . . . . . 4 2 . . . . Power 1 | . . . . . 1 . . . . . Propulsion 2 | . . . . . 1 1 . . . . Utility 3 | . . . . . 2 1 . . . . Weapon . | . . . . . . . . . . . Parts Attached 64 | 6 9 2 3 6 8 15 1 8 . 6 Power 8 | 1 . . . 3 1 2 . 1 . . Engine 6 | 1 . . . 2 . 2 . 1 . . Core 2 | . . . . 1 1 . . . . . Reactor . | . . . . . . . . . . . Propulsion 17 | 2 4 . . 2 2 4 1 1 . 1 Treads 2 | . 2 . . . . . . . . . Leg 2 | 2 . . . . . . . . . . Wheel . | . . . . . . . . . . . Hover . | . . . . . . . . . . . Flight 13 | . 2 . . 2 2 4 1 1 . 1 Utility 19 | 1 2 1 1 . 2 7 . 2 . 3 Device 10 | . . . 1 . . 5 . 1 . 3 Storage 5 | 1 1 1 . . 2 . . . . . Processor 4 | . 1 . . . . 2 . 1 . . Hackware . | . . . . . . . . . . . Protection . | . . . . . . . . . . . Artifact . | . . . . . . . . . . . Weapon 20 | 2 3 1 2 1 3 2 . 4 . 2 Energy Gun 3 | 1 . . . . 1 . . . . 1 Energy Cannon . | . . . . . . . . . . . Ballistic Gun 11 | 1 2 . 1 1 1 2 . 3 . . Ballistic Cannon . | . . . . . . . . . . . Launcher 3 | . 1 1 1 . . . . . . . Special Weapon . | . . . . . . . . . . . Impact Weapon 3 | . . . . . 1 . . 1 . 1 Slashing Weapon . | . . . . . . . . . . . Piercing Weapon . | . . . . . . . . . . . Special Melee Weapon . | . . . . . . . . . . . Unidentified Prototypes 4 | . . . 2 . 2 . . . . . Parts Lost 19 | . 1 . . 1 . 1 3 3 . 10 Power 4 | . . . . . . 1 . 2 . 1 Propulsion 7 | . . . . 1 . . 2 . . 4 Utility 6 | . . . . . . . 1 1 . 4 Weapon 2 | . 1 . . . . . . . . 1 Highest Loss Streak 10 | . 1 . . 1 . 1 3 2 . 10 Average Slot Usage (%) 69 | . 95 79 75 61 53 72 66 66 63 59 Engine 9 | . 14 14 14 11 . 7 15 10 7 5 Core 3 | . . . . . 11 6 . . . . Treads 2 | . 14 . . . . . . . . . Leg 1 | . 9 . . . . . . . . . Flight 22 | . 3 28 28 28 27 30 24 23 30 24 Device 3 | . . . 11 5 . 7 3 1 . 5 Storage 11 | . 12 10 14 14 14 9 7 5 . . Processor 7 | . 11 14 2 . . 8 15 22 23 21 Energy Gun 1 | . 7 . . . . . . . . . Ballistic Gun 4 | . 20 4 4 . . . . . . . Naked Turns . | . . . . . . . . . . . Heaviest Build 32 | 12 25 10 27 22 20 32 23 29 14 19 Greatest Support 40 | 20 40 10 10 10 16 24 24 29 20 21 Greatest Overweight (x) 7 | . 7 . 2 2 1 2 1 1 . 1 Average Overweight (x) . | . . . . . . . . . . . Largest Inventory Capacity 10 | 6 10 6 6 6 10 8 6 6 4 4 Average Capacity 6 | 4 7 5 6 6 7 6 6 5 4 4 Most Carried 8 | 5 8 6 6 6 8 8 6 6 4 4 Average Carried 5 | 2 5 5 5 5 6 6 5 5 3 2 Final Capacity 8 | 6 4 6 6 6 8 6 6 4 4 4 Final Carried 8 | 3 4 6 6 6 8 6 6 3 4 1 Class Distribution -------------------- 93% | Mutant 6% | Sprinter Dominant Class ---------------- Mutant | -10/Materials Mutant | -10/Mines Mutant | -10/Exiles Mutant | -9/Mines Mutant | -8/Materials Sprinter | -7/Factory Mutant | -7/Lower Caves Mutant | -7/Lower Caves Mutant | -7/Data Miner Mutant | -6/Proximity Caves Resources | -11 -10 -10 -10 -9 -8 -7 -7 -7 -7 -6 ----------- Run | Scr Mat Min Exi Min Mat Fac Low Low Dat Pro Matter Collected 805 | 177 161 . . 132 73 30 . 205 . 27 Remotely . | . . . . . . . . . . . Salvage Created 638 | . 243 . . . 32 77 . 262 . 24 Parts 49 | . 28 . . . 1 2 . 16 . 2 Haulers Intercepted 2 | . 2 . . . . . . . . . Recyclers Shooed . | . . . . . . . . . . . Parts Field Recycled . | . . . . . . . . . . . Retrieved Matter . | . . . . . . . . . . . Parts Self-Destructed 10 | . . . . . . . . . . 10 Prevented . | . . . . . . . . . . . Kills | -11 -10 -10 -10 -9 -8 -7 -7 -7 -7 -6 ------- Run | Scr Mat Min Exi Min Mat Fac Low Low Dat Pro Combat Hostiles Destroyed 12 | . 4 . . . . 1 . 6 . 1 Melee 2 | . 1 . . . . . . . . 1 Guns 10 | . 3 . . . . 1 . 6 . . Classes Destroyed 9 | . 5 . . . . 2 . 2 . . Builder 1 | . 1 . . . . . . . . . Hauler 2 | . 2 . . . . . . . . . Operator 3 | . 1 . . . 2 . . . . . Watcher 1 | . . . . . . 1 . . . . Swarmer 4 | . 3 . . . . . . . . 1 Grunt 2 | . 1 . . . . . . 1 . . Programmer 1 | . . . . . . 1 . . . . Master Thief 2 | . . . . . . . . 2 . . Thug 2 | . . . . . . . . 2 . . Butcher 1 | . . . . . . . . 1 . . Best Kill Streak 3 | . 3 . . . 1 1 . 3 . 1 Combat Bots Only 3 | . 3 . . . . 1 . 3 . 1 Max Kills in Single Turn 2 | . 2 . . . 1 1 . 1 . 1 Gunslinging . | . . . . . . . . . . . Exploded . | . . . . . . . . . . . Melee 1 | . 1 . . . . . . . . 1 Uniques/NPCs Destroyed . | . . . . . . . . . . . Combat | -11 -10 -10 -10 -9 -8 -7 -7 -7 -7 -6 -------- Run | Scr Mat Min Exi Min Mat Fac Low Low Dat Pro Damage Taken 2195 | . 254 10 . 230 . 464 60 355 . 822 Core 800 | . 43 . . 48 . 15 . 152 . 542 Absorbed by Shields 39 | . . . . . . . . . . 39 Core Remaining (%) 87 | 100 . . . 63 100 . . . . . Volleys Fired 21 | . 20 . . . . . . . . 1 Largest 2 | . 2 . . . . . . . . 1 Hottest 60 | . 60 . . . . . . . . 50 Shots Fired 93 | . 40 . . 4 3 18 . 27 . 1 Gun 93 | . 40 . . 4 3 18 . 27 . 1 Cannon . | . . . . . . . . . . . Launcher . | . . . . . . . . . . . Special . | . . . . . . . . . . . Kinetic 76 | . 24 . . 4 3 18 . 27 . . Thermal 1 | . . . . . . . . . . 1 Explosive . | . . . . . . . . . . . Electromagnetic 16 | . 16 . . . . . . . . . Robot Hit Streak 9 | . 9 . . 4 7 8 . 8 . 1 Robot Miss Streak 3 | . 2 . . . . 1 . 3 . . Penetration Max . | . . . . . . . . . . . Secondary Targets . | . . . . . . . . . . . Autonomous 52 | . . . . 4 3 18 . 27 . . Shots Hit Robots 73 | . 27 . . 4 4 14 . 21 . 3 Core Hits 36 | . 14 . . 1 2 3 . 14 . 2 Critical Hits . | . . . . . . . . . . . Critical Kills . | . . . . . . . . . . . Critical Parts Destroyed . | . . . . . . . . . . . Melee Attacks 5 | . . . . . 1 . . 2 . 2 Impact 5 | . . . . . 1 . . 2 . 2 Slashing . | . . . . . . . . . . . Piercing . | . . . . . . . . . . . Sneak Attacks 1 | . . . . . 1 . . . . . Combat Hostiles . | . . . . . . . . . . . Follow-up Attacks . | . . . . . . . . . . . Damage Inflicted 1921 | . 315 . . 102 206 437 . 809 . 52 Guns 1721 | . 296 . . 102 84 437 . 786 . 16 Cannons . | . . . . . . . . . . . Explosions . | . . . . . . . . . . . Melee 181 | . . . . . 122 . . 23 . 36 Ramming 19 | . 19 . . . . . . . . . Kinetic 1524 | . 115 . . 102 84 437 . 786 . . Thermal 16 | . . . . . . . . . . 16 Explosive . | . . . . . . . . . . . Electromagnetic 181 | . 181 . . . . . . . . . Impact 181 | . . . . . 122 . . 23 . 36 Slashing . | . . . . . . . . . . . Piercing . | . . . . . . . . . . . Highest Corruption 4 | . . . . . . 4 4 4 4 4 Average Corruption 3 | . . . . . . 3 4 4 4 4 Corruption Purged . | . . . . . . . . . . . Effects 17 | . . . . . . 3 2 5 1 6 Message Errors 7 | . . . . . . 1 1 3 . 2 Matter Fused 2 | . . . . . . . . 1 . 1 Heat Flow Errors 2 | . . . . . . 1 . . . 1 Energy Discharges 4 | . . . . . . . 1 1 1 1 Parts Rejected 1 | . . . . . . . . . . 1 Data Loss (minor) 1 | . . . . . . 1 . . . . Overload Shots . | . . . . . . . . . . . Overflow Damage . | . . . . . . . . . . . Projectiles . | . . . . . . . . . . . Explosions . | . . . . . . . . . . . Melee . | . . . . . . . . . . . Knockbacks . | . . . . . . . . . . . Impact . | . . . . . . . . . . . Kinetic . | . . . . . . . . . . . Secondary . | . . . . . . . . . . . Self-Inflicted Damage . | . . . . . . . . . . . Shots . | . . . . . . . . . . . Rammed 7 | . 7 . . . . . . . . . Targets Rammed 7 | . 7 . . . . . . . . . Kicked . | . . . . . . . . . . . Crushed . | . . . . . . . . . . . Highest Temperature 286 | . 18 . . . 286 206 . 13 . 184 Average Temperature 101 | . 13 . . . 139 112 . 7 . 96 Received Heat Transfer 357 | . 66 6 . 111 . 18 12 135 . 9 Siege Activations . | . . . . . . . . . . . Robots Corrupted . | . . . . . . . . . . . Combat Hostiles . | . . . . . . . . . . . Parts Fried . | . . . . . . . . . . . Impact Corruptions . | . . . . . . . . . . . Robots Melted . | . . . . . . . . . . . Combat Hostiles . | . . . . . . . . . . . Parts Melted . | . . . . . . . . . . . Heat Transferred 37 | . . . . . . . . . . 37 Parts Sabotaged . | . . . . . . . . . . . Parts Stolen 1 | . . . . . . . . 1 . . Parts Stripped . | . . . . . . . . . . . Power Chain Reactions 1 | . . . . . . 1 . . . . Missiles Intercepted . | . . . . . . . . . . . Alert | -11 -10 -10 -10 -9 -8 -7 -7 -7 -7 -6 ------- Run | Scr Mat Min Exi Min Mat Fac Low Low Dat Pro Peak Influence 395 | . 159 116 . 105 178 395 . . . . Initial 56 | . . 56 . . 40 2 . . . . Average 63 | . 54 75 . 32 47 172 . . . . Maximum Alert Level 1 | . . . . . . 1 . . . . Low Security (%) 94 | 100 100 100 . 100 100 64 . . . . Level 1 5 | . . . . . . 35 . . . . Level 2 . | . . . . . . . . . . . Level 3 . | . . . . . . . . . . . Level 4 . | . . . . . . . . . . . Level 5 . | . . . . . . . . . . . High Security . | . . . . . . . . . . . Max Security . | . . . . . . . . . . . Squads Dispatched 7 | . 3 . . . 1 3 . . . . Investigation 4 | . 2 . . . . 2 . . . . Extermination 1 | . . . . . . 1 . . . . Reinforcement 2 | . 1 . . . 1 . . . . . Assault . | . . . . . . . . . . . Garrison . | . . . . . . . . . . . Intercept . | . . . . . . . . . . . Construction Impeded . | . . . . . . . . . . . Haulers Reinforced . | . . . . . . . . . . . Stealth | -11 -10 -10 -10 -9 -8 -7 -7 -7 -7 -6 --------- Run | Scr Mat Min Exi Min Mat Fac Low Low Dat Pro Distress Signals 5 | . . . . . 3 2 . . . . Communications Jammed . | . . . . . . . . . . . Distress Signals . | . . . . . . . . . . . Times Spotted 91 | . 20 4 . 12 3 17 1 22 . 12 Peak Tracking Total 14 | . 8 2 . 3 8 5 1 10 . 14 Tactical Retreats 21 | . 3 2 . 5 1 5 1 3 . 1 Traps | -11 -10 -10 -10 -9 -8 -7 -7 -7 -7 -6 ------- Run | Scr Mat Min Exi Min Mat Fac Low Low Dat Pro Traps Triggered 2 | . 1 . . . . 1 . . . . Indirectly . | . . . . . . . . . . . Trap Hack Attempts . | . . . . . . . . . . . Triggered . | . . . . . . . . . . . Disarmed . | . . . . . . . . . . . Reprogrammed . | . . . . . . . . . . . Reused . | . . . . . . . . . . . Traps Extracted . | . . . . . . . . . . . Installed . | . . . . . . . . . . . Triggered . | . . . . . . . . . . . Machines | -11 -10 -10 -10 -9 -8 -7 -7 -7 -7 -6 ---------- Run | Scr Mat Min Exi Min Mat Fac Low Low Dat Pro Machines Disabled 1 | . . . . . . 1 . . . . Max in Single Turn 1 | . . . . . . 1 . . . . Machines Sabotaged . | . . . . . . . . . . . Garrisons Compromised . | . . . . . . . . . . . Overloaded Fab Kills 3 | . . . . . . 3 . . . . Fab Network Shutdowns . | . . . . . . . . . . . Hacking | -11 -10 -10 -10 -9 -8 -7 -7 -7 -7 -6 --------- Run | Scr Mat Min Exi Min Mat Fac Low Low Dat Pro Machines Accessed 21 | . 7 . . 1 4 5 . . 4 . Terminals 12 | . 6 . . . 3 3 . . . . Fabricators 2 | . . . . . . 2 . . . . Repair Stations . | . . . . . . . . . . . Recycling Units 2 | . 1 . . . 1 . . . . . Scanalyzers . | . . . . . . . . . . . Garrison Access . | . . . . . . . . . . . Total Hacks 75 | . 27 . . 1 11 10 . . 26 . Successful 46 | . 11 . . 1 5 3 . . 26 . Failed 29 | . 16 . . . 6 7 . . . . Catastrophic 5 | . 2 . . . . 3 . . . . Database Lockouts . | . . . . . . . . . . . Manual 40 | . 18 . 1 . 11 10 . . . . Terminals 42 | . 26 . . . 9 7 . . . . Fabricators 3 | . . . . . . 3 . . . . Repair Stations . | . . . . . . . . . . . Recycling Units 3 | . 1 . . . 2 . . . . . Scanalyzers . | . . . . . . . . . . . Garrison Access . | . . . . . . . . . . . Terminal Hacks 32 | . 5 . . 1 . . . . 26 . Record 9 | . . . . . . . . . 9 . Part Schematic 7 | . . . . . . . . . 7 . Robot Schematic 7 | . . . . . . . . . 7 . Prototype ID Bank 3 | . . . . . . . . . 3 . Open Door 1 | . . . . 1 . . . . . . Terminal Index 1 | . 1 . . . . . . . . . Unreport Threat 2 | . 2 . . . . . . . . . Dispatch Records 1 | . 1 . . . . . . . . . Hauler Manifests 1 | . 1 . . . . . . . . . Fabricator Hacks . | . . . . . . . . . . . Repair Station Hacks . | . . . . . . . . . . . Recycling Unit Hacks . | . . . . . . . . . . . Scanalyzer . | . . . . . . . . . . . Garrison Access Hacks . | . . . . . . . . . . . Unauthorized Hacks 14 | . 6 . . . 5 3 . . . . Terminals 9 | . 5 . . . 3 1 . . . . Botnet 7 | . 4 . . . 2 1 . . . . Operators 2 | . 1 . . . 1 . . . . . Fabricators 2 | . . . . . . 2 . . . . Overload 1 | . . . . . . 1 . . . . Download 1 | . . . . . . 1 . . . . Repair Stations . | . . . . . . . . . . . Recycling Units 3 | . 1 . . . 2 . . . . . Monitor 1 | . . . . . 1 . . . . . Recyclers 1 | . . . . . 1 . . . . . Tunnel 1 | . 1 . . . . . . . . . Scanalyzers . | . . . . . . . . . . . Garrison Access . | . . . . . . . . . . . Data Cores Recovered 1 | . . . . . 1 . . . . . Used 1 | . . . . . 1 . . . . . Hacking Detections 13 | . 6 . . . 3 4 . . . . Full Trace Events . | . . . . . . . . . . . Feedback Events . | . . . . . . . . . . . Feedback Blocked . | . . . . . . . . . . . Robot Schematics Acquired 7 | . . . . . . . . . 7 . Robots Built . | . . . . . . . . . . . Matter . | . . . . . . . . . . . Time . | . . . . . . . . . . . Total Robot Build Rating . | . . . . . . . . . . . Part Schematics Acquired 8 | . . . . . . 1 . . 7 . Parts Built . | . . . . . . . . . . . Matter . | . . . . . . . . . . . Time . | . . . . . . . . . . . Total Part Build Rating . | . . . . . . . . . . . Parts Repaired . | . . . . . . . . . . . Time . | . . . . . . . . . . . Parts Recycled . | . . . . . . . . . . . Recycled Matter . | . . . . . . . . . . . Retrieved Matter . | . . . . . . . . . . . Retrieved Components . | . . . . . . . . . . . Parts Scanalyzed . | . . . . . . . . . . . Part Schematics Acquired . | . . . . . . . . . . . Parts Damaged . | . . . . . . . . . . . Bothacking | -11 -10 -10 -10 -9 -8 -7 -7 -7 -7 -6 ------------ Run | Scr Mat Min Exi Min Mat Fac Low Low Dat Pro Used RIF Installer . | . . . . . . . . . . . Robots Hacked . | . . . . . . . . . . . Non-combat . | . . . . . . . . . . . Combat . | . . . . . . . . . . . Robot Hacks Applied . | . . . . . . . . . . . Relay Couplers Released . | . . . . . . . . . . . Robots Rewired . | . . . . . . . . . . . Allies Hacked . | . . . . . . . . . . . Hacks Repelled . | . . . . . . . . . . . Allies | -11 -10 -10 -10 -9 -8 -7 -7 -7 -7 -6 -------- Run | Scr Mat Min Exi Min Mat Fac Low Low Dat Pro Total Allies 2 | . . . . 1 . . . . . 1 Largest Group 1 | . . . . 1 1 . . . . 1 Highest-Rated Group 94 | . . . . 31 31 . . . . 94 Highest-Rated Ally 94 | . . . . 31 31 . . . . 94 Total Orders . | . . . . . . . . . . . Ally Attacks 13 | . . . . . 6 . . . . 7 Total Damage 221 | . . . . . 84 . . . . 137 Kills 4 | . . . . . 2 . . . . 2 Allies Corrupted . | . . . . . . . . . . . Allies Melted . | . . . . . . . . . . . Intel | -11 -10 -10 -10 -9 -8 -7 -7 -7 -7 -6 ------- Run | Scr Mat Min Exi Min Mat Fac Low Low Dat Pro Robot Analysis Total . | . . . . . . . . . . . Derelict Logs Recovered 5 | . . . . 1 . . 2 1 . 1 Drone Launches . | . . . . . . . . . . . Drone Recoveries . | . . . . . . . . . . . Exploration | -11 -10 -10 -10 -9 -8 -7 -7 -7 -7 -6 ------------- Run | Scr Mat Min Exi Min Mat Fac Low Low Dat Pro Turns Passed 3833 | 69 755 116 267 745 795 419 132 213 32 290 Spaces Moved 4188 | 52 554 190 278 487 447 647 381 454 93 605 Core 87 | 11 1 . . . . . . . . 75 Treads 173 | . 173 . . . . . . . . . Legs 203 | 41 162 . . . . . . . . . Wheels . | . . . . . . . . . . . Hover . | . . . . . . . . . . . Flight 3725 | . 218 190 278 487 447 647 381 454 93 530 Fastest Speed 29 | 50 37 37 37 37 34 29 31 34 34 34 Average Speed 59 | 105 100 37 93 107 45 45 34 35 34 36 Slowest Speed 400 | 120 400 37 197 200 114 197 117 114 34 100 Overloaded Moves . | . . . . . . . . . . . Propulsion Burnouts . | . . . . . . . . . . . Robots Hopped 10 | . . 2 . 2 . 1 . 4 . 1 Cave-ins Triggered . | . . . . . . . . . . . Exploration Rate (%) 52 | 3 82 33 61 82 32 24 70 53 80 60 Regions Visited 10 Branch Regions 7 Pre-discovered Areas 4 | . 1 . . 1 1 . . . 1 . Known Exits Taken 4 | . . . . . . 1 1 1 1 . Unknown Exits Taken 6 | 1 1 1 1 1 1 . . . . . Scrap Searched 12 | . . . . 2 . . . 8 . 2 Spaces Dug . | . . . . . . . . . . . Terrain Destroyed 22 | . . . . . 2 12 . 8 . . Melee . | . . . . . . . . . . . Projectile 22 | . . . . . 2 12 . 8 . . AOE . | . . . . . . . . . . . Terrain Rammed . | . . . . . . . . . . . Walls Destroyed . | . . . . . . . . . . . Machines Disabled . | . . . . . . . . . . . Actions | -11 -10 -10 -10 -9 -8 -7 -7 -7 -7 -6 --------- Run | Scr Mat Min Exi Min Mat Fac Low Low Dat Pro Total 5457 | 65 714 234 285 707 1038 772 382 495 93 672 Wait 1100 | 1 96 42 . 209 569 97 . 32 . 54 Move 4159 | 51 553 185 277 483 446 644 380 445 92 603 Hop 9 | . . 2 . 1 . 1 . 4 . 1 Pick Up 40 | 7 15 . . 1 7 5 . 1 . 4 Fast Attach 19 | 2 2 1 3 1 3 4 . 3 . . Attach 38 | 4 4 1 . 3 5 9 1 5 . 6 Detach 18 | . . 3 1 3 2 5 1 2 1 . Swap 7 | . 3 . . 2 . 2 . . . . Drop 34 | . 14 . 4 4 5 5 . 1 . 1 Fire 21 | . 20 . . . . . . . . 1 Melee 5 | . . . . . 1 . . 2 . 2 Ram . | . . . . . . . . . . . Kick . | . . . . . . . . . . . Crush 7 | . 7 . . . . . . . . . Escape Stasis . | . . . . . . . . . . . Rewire . | . . . . . . . . . . . Trap . | . . . . . . . . . . . Miscellaneous . | . . . . . . . . . . . Route ------- -11/Scrapyard -10/Materials (discovered 4 exits: [*Mat x2] / [*Min x2]) -10/Mines (discovered 2 exits: [*Mat] / *Exi) -10/Exiles -9/Mines -8/Materials -7/Factory -7/Lower Caves -7/Lower Caves -7/Data Miner -6/Proximity Caves History --------- Turn | Location | Event 8 | -11/Scrapyard | Discovered new exit (range 14) 70 | -11/Scrapyard | Entered Materials 248 | -10/Materials | Discovered new exit (range 16) 306 | -10/Materials | Build established: Mutant 592 | -10/Materials | Discovered new exit (range 7) 718 | -10/Materials | Discovered new exit (range 15) 811 | -10/Materials | Discovered new exit (range 16) 825 | -10/Materials | Entered Mines 835 | -10/Mines | Discovered new exit (range 11) 940 | -10/Mines | Deemed a non-threat by the Exiles lab entrance 940 | -10/Mines | Discovered new exit (range 5) 941 | -10/Mines | Entered Exiles 951 | -10/Exiles | Met 8R-AWN 957 | -10/Exiles | Met EX-HEX 969 | -10/Exiles | Met EX-BIN 975 | -10/Exiles | Aligned with FarCom system 976 | -10/Exiles | Given EX-Vault access code 984 | -10/Exiles | Opened EX-Vault 986 | -10/Exiles | Found Prototype Device 986 | -10/Exiles | Identified Cloak of Protection 989 | -10/Exiles | Found Prototype Ballistic Gun 989 | -10/Exiles | Identified AWS/Gauss 1030 | -10/Exiles | Warned to stay clear of 0b10 Research branches 1153 | -10/Exiles | Met EX-DEC 1191 | -10/Exiles | Discovered new exit (range 14) 1208 | -10/Exiles | Stole two prototypes: Cloak of Protection, AWS/Gauss 1208 | -10/Exiles | Entered Mines 1214 | -9/Mines | Learned location of Zion (-6) 1427 | -9/Mines | Met a Derelict who couldn't figure out how to use a Trap Extractor 1884 | -9/Mines | Discovered new exit (range 7) 1939 | -9/Mines | Escorted by a lone wolf Derelict 1953 | -9/Mines | Entered Materials 1953 | -8/Materials | Accompanied by 1 ally 1953 | -8/Materials | Evolved 4 slots: Power x1, Propulsion x1, Utility x2 1959 | -8/Materials | Learned location of Storage (-8) 2545 | -8/Materials | Discovered new exit (range 5) 2748 | -8/Materials | Entered Factory 2748 | -7/Factory | Evolved 2 slots: Propulsion x1, Utility x1 2750 | -7/Factory | FarCom data flow suspended 3134 | -7/Factory | Discovered new exit (range 3) 3165 | -7/Factory | Identified exit to Lower Caves 3167 | -7/Factory | Entered Lower Caves 3168 | -7/Lower Caves | Spotted B-75 Beast 3203 | -7/Lower Caves | Learned Factory terminal intel 3212 | -7/Lower Caves | Learned 4 Factory zone layouts 3221 | -7/Lower Caves | Lost 3 parts (2n1u) 3288 | -7/Lower Caves | Encountered a Warlord checkpoint 3289 | -7/Lower Caves | Discovered new exit (range 17) 3299 | -7/Lower Caves | Identified exit to Lower Caves 3299 | -7/Lower Caves | Entered another Lower Caves area 3375 | -7/Lower Caves | Attracted the attention of an 0b10 base 3417 | -7/Lower Caves | Attacked by a faux Warlord 3461 | -7/Lower Caves | Spotted UO-R7Y(f) 3462 | -7/Lower Caves | Spotted YS-S2P(f) 3463 | -7/Lower Caves | Encountered a Master Thief 3463 | -7/Lower Caves | Encountered a Master Thief 3463 | -7/Lower Caves | Spotted 0E-HDE(f) 3464 | -7/Lower Caves | Encountered a Master Thief 3471 | -7/Lower Caves | Destroyed UO-R7Y(f) 3478 | -7/Lower Caves | Destroyed 0E-HDE(f) 3479 | -7/Lower Caves | AWS/Gauss stolen by Master Thief 3504 | -7/Lower Caves | Discovered new exit (range 4) 3505 | -7/Lower Caves | Identified exit to Data Miner 3510 | -7/Lower Caves | Learned 4 Factory zone layouts 3512 | -7/Lower Caves | Entered Data Miner 3512 | -7/Data Miner | Discovered new exit (range 6) 3517 | -7/Data Miner | Met Data Miner 3530 | -7/Data Miner | Learned location of Section 7 (-2) 3530 | -7/Data Miner | Acquired the access code to Warlord's prototype stash 3536 | -7/Data Miner | Received God Mode back door access code from Data Miner 3543 | -7/Data Miner | Identified exit to Proximity Caves 3544 | -7/Data Miner | Entered Proximity Caves 3667 | -6/Proximity Caves | Escorted by Enhanced Grunt 3709 | -6/Proximity Caves | Learned location of 1 exit from Factory 3751 | -6/Proximity Caves | Attracted the attention of an 0b10 base 3771 | -6/Proximity Caves | Spotted B-75 Beast 3794 | -6/Proximity Caves | Core integrity fell below 50% 3822 | -6/Proximity Caves | Core integrity fell below 20% 3828 | -6/Proximity Caves | Lost 10 parts (1p4n4u1w) 3834 | -6/Proximity Caves | Destroyed by S-27 Virus with Autogun Last Messages --------------- Acquired 10 matter. System corrupted: Heat flow error (+197). Cloak of Protection destroyed. System corrupted: Nuclear Pulse Thruster rejected. Acquired Nuclear Pulse Thruster. Xenon Bombardment Thruster destroyed. ID70G>UXBFVNJHE5TJ57DHZEYW 72,MH2G Imp. Deuterium Engine destroyed. Adv. Targeting Computer destroyed. Mak. Laser destroyed. Xenon Bombardment Thruster destroyed. Nuclear Pulse Thruster destroyed. Hardlight Generator destroyed. Cesium-ion Thruster destroyed. System Backup Module destroyed. Penetrated by Slug. System corrupted: Matter fused (-10). 5NY3XKEZ6RK UM V5HJP< Acquired Great Maul. S-27 Virus destroyed. Map ----- +----------------------------------------------------+ | ?????????????????????????????????????????????????? | | ?????????????????????????????????????????????????? | | ?????????????????????????????????????????????????? | | ?????????????????????????????????????????????????? | | ?????????????????????????????????????????????????? | | ?????????????????????????????????????????????????? | | ?????????????????????????????????????????????????? | | ?#####????????????????#####??????????????????????? | | ?# ##??????????????## #??????????????????????? | | ## #????????####?## ##?????????????????????? | | # #????????# ### ##????????????????????? | | # #?????????# #####????????????????? | | ######??#### ## ##???????????????? | | #### ### #???????????????? | | ### #???????????????? | | #### ##?# ##???????????????? | | #?# ##?# ##???????????????? | | #?# ## #### #???????????????? | | ##?# #### #?## ##??????????????? | | #?# #??# ## ###??#### #??????????????? | | # ##??##### ##???????## #??????????????? | | # ##???????# #????####?# #??????????????? | | # #####??????# #???##/ #?# #??????????????? | | # #?# ##????# ##?##%] #?## #??????????????? | | ## ### #???# ###s % #### #??????????????? | | ## ???## [s@ # ##??????????????? | | " ## #??## s ss ###???????????????? | | " ## # ### ## ## #?????????????????? | | ## #???# ##### ##??#?????????????????? | | ## #???#### ###???###?????????????????????? | | # #??###?## ##?????????????????????????????? | | # #?## #### ##?##########???????????????????? | | #### #?# ## #?## ????????????????????? | | #??# #?# ### ???????????????????????? | | #??# #?## ## ##?????????????????????????? | | #??# #?## ##????????????????????????? | | #### ### ####?????????????????????? | | #?????????????????????? | | #?????????????????????? | | ################ #?????????????????????? | | #??????????????# #?????????????????????? | | #??????????????# #?????????????????????? | | #???? "????????# #?????????????????????? | | ### #??" """"?????# ##????????????????????? | | ##?# #??# """" #??# ##???????????????????? | | ####??# #???? / # ##??????????????????? | | ??????# +???????????# / #??????????????????? | | ??????# +???????????# / #?????????????????? | | ??????# #???????????# # ##?????????????????? | | ??????# #???????????# # ##??????????????????? | +----------------------------------------------------+ Best States ------------- Heat Dissipation 34 Energy Generation 25 Energy Capacity 330 Matter Stores 300 Matter Capacity 300 Sight Range 22 Terrain Scan Range 24 Terrain Scan Density 10 Cloak Strength 5 Additional Mass Support 9 Evasion (%) 69 Targeting Accuracy 8 Recoil Reduction 2 Item Schematics ----------------- Field Propulsion Drive | -7/Factory | Downloaded Combat Drone Bay | -7/Data Miner | Free Lgt. Regenerative Plating | -7/Data Miner | Free Cmb. Gravmag System | -7/Data Miner | Free Exp. Targeting Computer | -7/Data Miner | Free Exp. ECM Suite | -7/Data Miner | Free Mni. Smartbomb Launcher | -7/Data Miner | Free Kinetic Spear | -7/Data Miner | Free Robot Schematics ------------------ S-27 Virus | -7/Data Miner | Free G-67 Veteran | -7/Data Miner | Free L-41 Fighter | -7/Data Miner | Free H-66 Slayer | -7/Data Miner | Free I-36 Angel | -7/Data Miner | Free I-47 Archangel | -7/Data Miner | Free G-50 Soldier | -7/Data Miner | Free Fabricated ------------ Nothing Alien Tech Used ----------------- None Achievements -------------- Ride The Lightning Challenges ------------ None Game ------ Seed GreatControlRail Manual? 0 Play Time 00:54:18 Cumulative 87.2 hours Start 2021.11.05 @ 06:38:03 End 2021.11.05 @ 07:28:52 Sessions 1 Manual Loads 0 Difficulty Rogue Special Mode None Game No. 125 Rogue 91 Adventurer 11 Explorer 23 Win Type - Total 0 Types 0/0/0/0/0/0/0/0/0 Lore% 42 Gallery% 63 Achievement% 36 Wizard Run 0 Options --------- ASCII 0 Keyboard 0 Movement Mouse Keybinds 0 Fullscreen 2 Font 18/SmallcapsGlow Map View 76x50 Tactical HUD 0 Map Filters NONE Filters NONE Steam 1 RUN: fcb694cc-25c2-4211-a8c7-58a9316b48bd